bitfinex/quotes_SOLUSD_20240725
["timestamp","ask_amount","ask_price","bid_price","bid_amount"]
[1721914089438,401.3925,167.99,167.93,5.9547]
[1721914090006,5.9532,167.98,167.92,20.8424]
[1721914090324,5.9532,167.98,167.87,36.4031]
[1721914090325,0.40947338,167.98,167.89,20.8464]
[1721914090530,0.40947338,167.98,167.86,30.97639927]
[1721914090531,0.40947338,167.98,167.88,5.9563]
[1721914090732,0.40947338,167.98,167.86,14.8929]
[1721914090733,27.29,167.94,167.86,14.8929]
[1721914090948,395.4395,167.99,167.83,14.8959]
[1721914090949,27.29,167.91,167.83,14.8959]
[1721914091237,5.9579,167.85,167.8,14.8985]
[1721914091417,27.29,167.88,167.8,14.8985]
[1721914091610,404.2362,167.92,167.82,34.8963]
[1721914091816,404.2362,167.92,167.83,1.19135316]
[1721914092011,410.1916,167.92,167.86,5.957]
[1721914092213,404.2362,167.92,167.86,5.957]
[1721914092415,404.2362,167.92,167.87,14.8922]
[1721914092730,410.1915,167.92,167.87,14.8922]
[1721914093434,410.1915,167.92,167.87,20.849]
[1721914093734,410.1915,167.92,167.87,14.8922]
[1721914093937,389.2,167.92,167.87,14.8922]
[1721914095819,389.2,167.92,167.88,5.9563]
[1721914096229,5.955,167.93,167.88,5.9563]
[1721914096428,5.9559,167.9,167.85,5.9576]
[1721914096719,5.9559,167.9,167.86,45.0]
[1721914096928,5.9559,167.9,167.85,5.9576]
[1721914097131,5.9571,167.87,167.82,5.9584]
[1721914097316,15.29717338,167.93,167.83,5.9581]
[1721914097516,5.9563,167.89,167.83,5.9581]
[1721914098114,5.956,167.9,167.83,14.8952]
[1721914098320,5.9559,167.9,167.85,5.9576]
[1721914098531,15.29437338,167.96,167.85,14.8935]
[1721914098728,47.69947338,167.95,167.86,5.9572]
[1721914098916,20.0,167.95,167.85,14.8935]
[1721914099111,5.9552,167.92,167.85,14.8935]
[1721914099313,47.69947338,167.95,167.85,20.851]
[1721914099637,5.9553,167.92,167.86,5.957]
[1721914099836,5.9553,167.92,167.87,45.0]
[1721914100134,5.9553,167.92,167.87,50.9568]
[1721914100340,5.9546,167.94,167.89,5.9559]
[1721914100635,20.0,167.95,167.89,5.9559]
[1721914100636,25.9541,167.95,167.89,5.9559]
[1721914100826,5.9541,167.95,167.89,5.9559]
[1721914101335,5.9538,167.96,167.9,46.19095636]
[1721914102255,5.9534,167.98,167.91,34.8883]
[1721914102459,33.8159,168.01,167.92,46.19067597]
[1721914102622,5.9527,167.99,167.93,7.14535669]
[1721914103120,5.9527,167.99,167.94,5.9544]
[1721914103338,33.8159,168.01,167.95,1.19063853]
[1721914103339,5.9524,168.0,167.95,1.19063853]
[1721914103538,12.4779,168.01,167.95,14.8848]
[1721914103741,389.2,168.02,167.95,14.8848]
[1721914104042,389.2,168.02,167.99,5.9523]
[1721914104342,12.1823,168.05,167.99,5.9523]
[1721914104343,5.9506,168.05,167.99,5.9523]
[1721914104647,5.9509,168.04,167.99,5.9523]
[1721914105125,5.9509,168.04,167.98,5.953]
[1721914105322,5.9509,168.04,167.99,5.9525]
[1721914105529,15.5549,168.07,167.98,5.953]
[1721914105940,5.951,168.04,167.98,5.953]
[1721914106143,5.9514,168.03,167.98,7.14328947]
[1721914106439,5.951,168.04,167.99,5.9526]
[1721914107138,5.951,168.04,167.98,5.953]
[1721914107347,5.951,168.04,167.99,45.0]
[1721914107718,5.951,168.04,167.99,50.9526]
[1721914109846,0.40947338,168.1,167.99,50.9526]
[1721914109847,14.8709,168.12,168.0,35.2133]
[1721914110045,5.9494,168.09,168.03,20.8293]
[1721914110438,5.9494,168.09,168.04,45.0]
[1721914110745,5.9501,168.07,168.01,5.9517]
[1721914110924,5.9503,168.06,168.01,5.9519]
[1721914111131,5.9503,168.06,168.0,21.1656]
[1721914111329,5.9503,168.06,168.01,5.9519]
[1721914111538,27.29,168.09,168.02,5.9515]
[1721914111744,27.29,168.09,168.03,1.19008165]
[1721914111745,5.9498,168.08,168.03,1.19008165]
[1721914112245,5.9498,168.08,168.03,5.9511]
[1721914112444,5.9498,168.08,168.03,50.9511]
[1721914112654,33.2392,168.09,168.03,50.9511]
[1721914112839,5.9492,168.09,168.03,50.9511]
[1721914113034,27.29,168.09,168.01,14.8794]
[1721914113237,5.9505,168.06,168.01,14.8794]
[1721914113438,27.29,168.09,168.01,14.8794]
[1721914114533,5.9499,168.07,168.02,5.9514]
[1721914114931,5.9503,168.06,168.01,14.8794]
[1721914115138,5.9503,168.06,168.01,20.8314]
[1721914115338,5.9499,168.07,168.01,20.8314]
[1721914115544,33.2395,168.09,168.01,14.8794]
[1721914115832,5.9496,168.08,168.02,5.9516]
[1721914116036,5.9499,168.07,168.02,5.9516]
[1721914116330,5.9499,168.07,168.01,20.8313]
[1721914116745,5.9502,168.06,168.02,1.19009747]
[1721914116956,0.40947338,168.07,167.99,5.9524]
[1721914117255,43.7359,168.06,167.95,31.4696]
[1721914117456,5.9516,168.03,167.95,31.4696]
[1721914117752,5.9524,168.0,167.95,37.4235]
[1721914118333,5.952,168.01,167.96,5.9537]
[1721914120154,22.8934,168.06,167.97,34.8831]
[1721914120367,20.0,168.05,167.98,45.0]
[1721914120666,5.9512,168.04,167.98,45.0]
[1721914120853,5.9514,168.03,167.98,50.9529]
[1721914121560,5.9509,168.04,167.99,5.9526]
[1721914121938,5.9509,168.04,167.98,50.9529]
[1721914122458,25.9507,168.05,167.99,5.9527]
[1721914122639,28.8436,168.06,167.99,14.8814]
[1721914123138,33.2402,168.07,168.01,14.8794]
[1721914123351,20.0,168.06,167.98,59.8825]
[1721914123549,20.0,168.06,167.98,65.8354]
[1721914123550,5.951,168.04,167.98,65.8354]
[1721914124357,25.9506,168.06,167.98,59.8825]
[1721914124539,5.9507,168.05,168.0,5.9522]
[1721914125351,27.29,168.07,167.98,59.8825]
[1721914125567,5.9471,168.15,168.09,5.9489]
[1721914125771,5.9474,168.14,168.08,20.8228]
[1721914126083,5.9471,168.15,168.09,45.0]
[1721914126235,5.9471,168.15,168.09,65.0]
[1721914126431,5.9467,168.16,168.09,65.0]
[1721914126878,5.9472,168.15,168.1,5.9487]
[1721914127043,5.9475,168.14,168.09,50.9491]
[1721914127244,5.9469,168.16,168.09,45.0]
[1721914127482,33.2357,168.19,168.13,5.9474]
[1721914127634,27.29,168.19,168.13,1.18935379]
[1721914127840,5.9467,168.16,168.11,14.8704]
[1721914128169,5.9482,168.12,168.08,14.8735]
[1721914128372,5.9478,168.13,168.08,14.8735]
[1721914129146,14.8682,168.15,168.05,20.8265]
[1721914129348,20.0,168.14,168.05,5.9506]
[1721914129547,5.9481,168.13,168.06,1.18986675]
[1721914129787,20.0,168.14,168.04,36.06654729]
[1721914130069,20.0,168.14,168.05,5.9505]
[1721914130440,20.0,168.14,168.01,14.8799]
[1721914130441,14.8704,168.12,168.01,14.8799]
[1721914130677,33.90517338,168.13,168.01,14.8799]
[1721914130678,5.9503,168.06,168.01,14.8799]
[1721914130970,5.9503,168.06,168.01,20.8318]
[1721914131541,5.9499,168.07,168.02,5.9516]
[1721914132145,5.9499,168.07,168.01,20.8318]
[1721914132565,5.9502,168.06,168.01,20.8318]
[1721914133766,5.9491,168.09,168.04,5.9508]
[1721914134069,395.1484,168.11,168.06,5.9502]
[1721914134272,395.1484,168.11,168.07,1.18976893]
[1721914134452,389.2,168.11,168.07,1.18976893]
[1721914134652,389.2,168.11,168.08,5.9492]
[1721914134857,5.9477,168.14,168.08,5.9492]
[1721914135058,5.9478,168.13,168.08,5.9492]
[1721914135249,5.9478,168.13,168.09,1.18961289]
[1721914135858,405.7987,168.18,168.07,14.874]
[1721914135859,54.8631955,168.17,168.07,14.874]
[1721914136065,5.9486,168.11,168.05,5.9505]
[1721914136266,5.9481,168.13,168.06,45.0]
[1721914136573,54.45372212,168.17,168.07,7.13953601]
[1721914136778,54.45372212,168.17,168.08,1.1897232]
[1721914137274,5.9482,168.12,168.06,65.8249]
[1721914137670,5.9482,168.12,168.07,1.18974834]
[1721914137851,5.9482,168.12,168.08,1.18974398]
[1721914138371,5.9478,168.13,168.06,59.875]
[1721914138546,5.9484,168.12,168.07,5.9498]
[1721914139566,5.9484,168.12,168.08,1.18974295]
[1721914139762,5.9484,168.12,168.07,5.9498]
[1721914139980,5.9484,168.12,168.08,1.18972824]
[1721914140264,5.9484,168.12,168.07,5.9498]
[1721914140466,389.2,168.15,168.08,14.8733]
[1721914140848,2.31146452,168.2,168.1,14.8714]
[1721914141043,5.9466,168.17,168.11,5.9483]
[1721914141569,5.9466,168.17,168.12,5.948]
[1721914141759,0.40947338,168.19,168.11,5.9483]
[1721914141954,5.9471,168.15,168.1,20.8201]
[1721914142555,5.9464,168.17,168.11,5.9484]
[1721914142884,5.9464,168.17,168.12,5.9481]
[1721914143570,5.9466,168.17,168.1,14.8714]
[1721914143756,5.9466,168.17,168.11,5.9483]
[1721914143949,5.9467,168.16,168.11,5.9483]
[1721914144171,389.2,168.2,168.12,14.8697]
[1721914144373,389.2,168.2,168.13,5.9474]
[1721914144374,25.9457,168.19,168.13,5.9474]
[1721914144673,395.1453,168.2,168.14,5.9471]
[1721914144866,395.1453,168.2,168.15,1.18924952]
[1721914145051,395.1453,168.2,168.15,5.947]
[1721914145974,389.2,168.2,168.12,14.8697]
[1721914146183,5.9462,168.18,168.13,7.13705212]
[1721914146365,5.9462,168.18,168.13,7.13704804]
[1721914146686,5.9456,168.19,168.14,5.9473]
[1721914146893,70.61563031,168.23,168.13,5.9476]
[1721914146894,5.946,168.18,168.13,5.9476]
[1721914147186,5.9461,168.18,168.12,20.8174]
[1721914147387,5.9461,168.18,168.13,5.9476]
[1721914147694,39.14943031,168.23,168.15,14.8672]
[1721914148000,5.9446,168.22,168.17,5.9463]
[1721914148363,30.65,168.23,168.15,14.8672]
[1721914148595,30.65,168.23,168.18,5.9459]
[1721914148760,30.65,168.23,168.17,5.9462]
[1721914148959,30.65,168.23,168.15,14.8672]
[1721914148960,30.65,168.23,168.16,5.9466]
[1721914149271,5.9453,168.2,168.15,20.8142]
[1721914149903,5.9457,168.19,168.15,14.8672]
[1721914150266,5.946,168.18,168.13,21.0228]
[1721914150595,5.9456,168.19,168.14,5.9474]
[1721914151089,30.65,168.23,168.14,14.8679]
[1721914151276,5.9453,168.2,168.15,5.9467]
[1721914151491,5.9453,168.2,168.16,5.9467]
[1721914151788,5.85278677,168.25,168.2,5.9452]
[1721914151991,5.85278677,168.25,168.18,14.8643]
[1721914151992,5.9439,168.24,168.18,14.8643]
[1721914152291,22.6535,168.27,168.18,14.8643]
[1721914152461,14.9568,168.28,168.18,14.8643]
[1721914152655,389.2,168.27,168.18,14.8643]
[1721914152859,14.8583,168.26,168.15,14.8673]
[1721914153061,5.9452,168.21,168.16,5.9464]
[1721914153286,27.18,168.25,168.15,14.8673]
[1721914153577,34.8602,168.24,168.13,15.0752]
[1721914153792,5.9456,168.19,168.14,5.9471]
[1721914154008,42.0421,168.22,168.13,15.0752]
[1721914154215,5.9474,168.15,168.09,20.8216]
[1721914154492,5.9474,168.15,168.09,14.8726]
[1721914154701,5.9488,168.11,168.08,16.5841]
[1721914154884,14.8665,168.17,168.08,22.5334]
[1721914155075,389.2,168.2,168.1,14.8715]
[1721914155285,5.946,168.18,168.1,14.8715]
[1721914155473,5.946,168.18,168.09,20.0]
[1721914155474,389.2,168.2,168.11,1.18933371]
[1721914155778,389.2,168.2,168.13,5.9475]
[1721914155779,5.9456,168.19,168.13,5.9475]
[1721914155999,395.1453,168.2,168.14,14.8681]
[1721914156299,14.8601,168.24,168.15,21.2767]
[1721914156480,0.1,168.28,168.17,20.0]
[1721914156683,5.9436,168.25,168.2,5.9451]
[1721914157103,5.9436,168.25,168.21,45.0]
[1721914157477,5.9439,168.24,168.19,5.9456]
[1721914157679,5.9442,168.23,168.18,20.8101]
[1721914157980,14.9563,168.28,168.19,5.9455]
[1721914158176,0.40947338,168.27,168.18,14.8642]
[1721914158375,14.9563,168.28,168.14,14.8678]
[1721914158376,5.946,168.18,168.14,14.8678]
[1721914158571,27.18,168.24,168.14,14.8678]
[1721914158572,5.9453,168.2,168.14,14.8678]
[1721914158790,27.18,168.27,168.17,14.8657]
[1721914159077,5.9434,168.26,168.21,5.9446]
[1721914159277,0.1,168.28,168.22,1.18873382]
[1721914159478,0.1,168.28,168.22,7.13293382]
[1721914159680,5.9431,168.27,168.22,7.13293382]
[1721914159980,5.9433,168.26,168.22,1.18873382]
[1721914160191,5.9429,168.27,168.22,1.18873382]
[1721914160386,0.1,168.28,168.22,7.13293382]
[1721914160584,5.9431,168.27,168.22,1.18873382]
[1721914161188,5.9432,168.26,168.22,1.18873382]
[1721914161497,6.0427,168.28,168.22,1.18873382]
[1721914162304,6.0427,168.28,168.23,5.9439]
[1721914162493,6.0427,168.28,168.22,5.9445]
[1721914162494,0.1,168.28,168.22,5.9445]
[1721914162697,5.9429,168.27,168.22,5.9445]
[1721914163691,5.9429,168.27,168.22,7.13320493]
[1721914163895,6.0425,168.28,168.23,5.9442]
[1721914164102,0.1,168.28,168.21,14.8615]
[1721914164304,5.9434,168.26,168.21,20.8061]
[1721914164802,5.9429,168.27,168.22,5.9445]
[1721914167910,0.50947338,168.28,168.19,15.3818]
[1721914168113,5.9442,168.23,168.19,15.3818]
[1721914168406,0.40947338,168.26,168.15,30.0027]
[1721914168698,5.9445,168.23,168.18,5.9459]
[1721914168901,409.2,168.26,168.17,14.8655]
[1721914169285,389.2,168.26,168.19,14.8635]
[1721914169518,389.2,168.26,168.22,5.9445]
[1721914169690,0.1,168.28,168.22,5.9445]
[1721914169691,0.1,168.28,168.26,5.9431]
[1721914169892,0.1,168.28,168.23,21.18852164]
[1721914169893,0.1,168.28,168.27,1.1883889]
[1721914170206,0.1,168.28,168.27,5.9428]
[1721914171006,0.1,168.28,168.27,50.9428]
[1721914171228,0.1,168.28,168.27,70.9428]
[1721914171396,0.1,168.28,168.27,65.0]
[1721914171604,0.1,168.28,168.27,45.0]
[1721914172312,0.1,168.28,168.2,49.32042212]
[1721914172492,0.1,168.28,168.2,42.7271]
[1721914172687,5.9437,168.25,168.2,22.7271]
[1721914173015,5.9439,168.24,168.2,22.7271]
[1721914173944,5.9436,168.25,168.2,22.7271]
[1721914174287,0.1,168.28,168.21,14.8616]
[1721914174489,5.9435,168.25,168.2,28.6721]
[1721914175014,5.9449,168.22,168.2,16.4691]
[1721914175224,42.0377,168.27,168.17,5.9463]
[1721914175517,5.9448,168.22,168.17,5.9463]
[1721914175701,5.9443,168.23,168.18,5.946]
[1721914175902,5.9439,168.24,168.19,5.9454]
[1721914176100,5.9435,168.25,168.2,5.9452]
[1721914176622,5.9432,168.26,168.2,5.9452]
[1721914176987,389.3,168.28,168.2,5.9452]
[1721914176988,5.9436,168.25,168.2,5.9452]
[1721914177608,5.9439,168.24,168.19,20.8092]
[1721914177910,5.9443,168.23,168.19,14.8636]
[1721914178311,5.9446,168.22,168.17,5.9463]
[1721914179313,5.9443,168.23,168.18,5.946]
[1721914180293,5.9443,168.23,168.18,5.9459]
[1721914180495,5.9439,168.24,168.19,5.9455]
[1721914182614,5.9442,168.23,168.18,5.9459]
[1721914182909,5.9441,168.24,168.19,5.9455]
[1721914183219,5.9442,168.23,168.18,20.8104]
[1721914183603,15.26797338,168.26,168.16,6.2822]
[1721914183802,5.9441,168.24,168.19,5.9456]
[1721914184113,5.9448,168.22,168.17,14.8652]
[1721914184417,5.9442,168.23,168.17,34.8652]
[1721914184805,5.9446,168.22,168.17,40.8114]
[1721914185414,5.9452,168.21,168.15,23.32017145]
[1721914185597,5.9452,168.21,168.16,5.9466]
[1721914185798,5.9446,168.22,168.17,5.9463]
[1721914185999,5.9449,168.21,168.16,5.9466]
[1721914186818,389.2,168.25,168.15,36.1845]
[1721914187741,389.2,168.25,168.14,64.6043]
[1721914187742,42.4459,168.23,168.11,16.2591]
[1721914187900,5.9469,168.16,168.11,22.2075]
[1721914188403,5.9471,168.15,168.11,16.2591]
[1721914188627,27.18,168.2,168.11,16.2591]
[1721914188829,27.18,168.2,168.06,47.18]
[1721914188830,5.9484,168.11,168.06,5.9501]
[1721914189008,5.9489,168.1,168.05,15.342]
[1721914189202,5.9493,168.09,168.04,14.8771]
[1721914189408,5.9494,168.09,168.04,5.9509]
[1721914189604,14.8702,168.13,168.05,1.19001566]
[1721914189907,6.3607,168.14,168.07,14.8741]
[1721914190113,395.1468,168.16,168.1,5.9485]
[1721914190543,5.947,168.15,168.1,5.9485]
[1721914191325,389.2,168.16,168.12,5.948]
[1721914191511,7.58816242,168.23,168.12,5.948]
[1721914191512,7.58816242,168.23,168.14,22.3336]
[1721914191812,5.9435,168.25,168.19,5.9454]
[1721914192004,5.9435,168.26,168.17,34.865]
[1721914192202,5.9435,168.25,168.19,5.9456]
[1721914192826,5.9435,168.25,168.18,5.9458]
[1721914193007,5.9435,168.25,168.19,5.9455]
[1721914193207,5.9444,168.23,168.17,20.811]
[1721914193709,27.18,168.27,168.17,20.811]
[1721914193710,5.9446,168.22,168.17,14.865]
[1721914194218,5.9442,168.23,168.17,20.8113]
[1721914195103,5.9442,168.23,168.17,14.865]
[1721914195312,5.9439,168.24,168.18,5.9459]
[1721914195826,5.9443,168.23,168.18,5.9459]
[1721914196506,5.9443,168.23,168.17,14.865]
[1721914196507,5.9435,168.25,168.17,14.865]
[1721914196827,5.9439,168.24,168.17,14.865]
[1721914197031,5.9434,168.26,168.2,14.8631]
[1721914197233,5.9434,168.26,168.2,20.8083]
[1721914197417,5.9434,168.26,168.21,5.9448]
[1721914197731,395.2425,168.28,168.22,5.9444]
[1721914198050,389.3,168.28,168.24,5.9436]
[1721914198524,389.3,168.28,168.23,20.8042]
[1721914198944,389.3,168.28,168.2,14.8629]
[1721914199234,389.3,168.28,168.21,50.9448]
[1721914199426,389.3,168.28,168.21,5.9448]
[1721914199627,5.9434,168.26,168.2,20.8081]
[1721914199939,5.9432,168.26,168.2,20.8081]
[1721914200435,5.9443,168.23,168.17,5.946]
[1721914200743,5.9438,168.25,168.19,5.9455]
[1721914200919,0.40947338,168.27,168.18,14.8642]
[1721914201238,0.40947338,168.26,168.16,5.9464]
[1721914201451,5.9453,168.2,168.15,14.8674]
[1721914201623,79.8578,168.27,168.12,14.8699]
[1721914201624,0.40947338,168.19,168.12,14.8699]
[1721914201820,27.58947338,168.19,168.11,5.9484]
[1721914202135,27.58947338,168.19,168.04,21.756]
[1721914202136,27.18,168.16,168.04,21.756]
[1721914202458,5.948,168.13,168.07,5.9498]
[1721914202624,0.40947338,168.12,168.05,5.9502]
[1721914202827,27.18,168.13,168.03,14.878]
[1721914203029,5.9491,168.1,168.05,5.9504]
[1721914203341,389.2,168.14,168.08,14.8737]
[1721914203542,389.2,168.14,168.13,20.8171]
[1721914203728,389.2,168.14,168.06,20.0]
[1721914203729,389.2,168.18,168.09,14.8729]
[1721914203922,27.18,168.16,168.03,20.0]
[1721914204132,5.9481,168.13,168.06,5.9502]
[1721914204446,5.9481,168.13,168.05,14.8759]
[1721914204447,5.9481,168.13,168.07,5.9497]
[1721914204641,0.40947338,168.14,168.05,20.8262]
[1721914204845,0.40947338,168.14,168.05,14.8759]
[1721914204846,5.9485,168.11,168.05,14.8759]
[1721914205345,5.9483,168.12,168.06,5.9502]
[1721914205528,20.0,168.14,168.02,14.8791]
[1721914205728,5.9485,168.11,168.04,14.8766]
[1721914205930,5.9489,168.1,168.05,5.9506]
[1721914206225,5.9489,168.1,168.04,20.8275]
[1721914206831,5.9497,168.08,168.03,5.9512]
[1721914207128,389.60947338,168.07,167.98,14.8825]
[1721914207539,5.9509,168.05,167.98,14.8825]
[1721914207726,5.9505,168.06,167.98,14.8825]
[1721914207927,5.9505,168.06,168.0,5.9521]
[1721914208341,0.40947338,168.05,167.99,5.9526]
[1721914208746,389.2,168.07,167.99,5.9526]
[1721914209642,5.9505,168.06,167.98,14.8825]
[1721914209841,5.9505,168.06,167.99,1.19030562]
[1721914210058,389.2,168.07,168.01,14.8798]
[1721914210724,395.1499,168.07,168.01,20.8317]
[1721914210933,389.2,168.07,168.02,1.19017568]
[1721914211136,389.2,168.07,168.03,5.9513]
[1721914211325,389.2,168.07,168.02,5.9516]
[1721914212032,395.1499,168.07,168.01,20.8315]
[1721914212233,389.2,168.06,168.02,45.0]
[1721914212844,389.2,168.06,167.99,5.9524]
[1721914213028,5.9518,168.02,167.97,5.9531]
[1721914213341,389.2,168.06,167.92,21.3162]
[1721914213342,14.8778,168.04,167.92,21.3162]
[1721914213543,5.9516,168.02,167.96,5.9537]
[1721914214661,5.9513,168.03,167.97,5.9533]
[1721914215237,389.2,168.05,167.99,5.9526]
[1721914215444,5.9509,168.05,167.99,5.9526]
[1721914216037,5.9513,168.03,167.98,59.8821]
[1721914216349,5.9513,168.03,167.98,20.835]
[1721914216551,0.40947338,168.02,167.98,14.8821]
[1721914217151,5.9514,168.03,167.98,20.835]
[1721914217333,5.9517,168.02,167.98,14.8821]
[1721914217538,5.9513,168.03,167.98,14.8821]
[1721914217755,0.40947338,168.07,167.94,14.8856]
[1721914217966,5.9517,168.02,167.96,5.9535]
[1721914218366,0.40947338,168.01,167.94,14.8856]
[1721914218558,0.40947338,168.01,167.93,5.9545]
[1721914218867,5.9524,168.0,167.94,5.9542]
[1721914219036,5.9524,168.0,167.95,5.954]
[1721914219236,6.5832,168.02,167.95,5.954]
[1721914219237,6.5832,168.02,167.96,5.9537]
[1721914219461,12.5349,168.02,167.96,5.9537]
[1721914219763,407.31368791,168.09,167.97,20.0]
[1721914219940,389.2,168.09,168.0,20.0]
[1721914220269,395.1494,168.09,168.03,5.9512]
[1721914220448,395.1494,168.09,168.02,14.8785]
[1721914220449,389.2,168.09,168.02,14.8785]
[1721914220635,389.2,168.09,168.02,20.8298]
[1721914220840,5.9498,168.08,168.03,5.9512]
[1721914221253,389.2,168.07,168.03,5.9512]
[1721914221447,5.9509,168.04,167.99,20.8343]
[1721914221656,5.9513,168.03,167.99,14.8817]
[1721914221851,389.2,168.07,167.99,14.8817]
[1721914222153,389.2,168.07,168.0,1.19028524]
[1721914222455,389.2,168.07,168.01,20.0]
[1721914222671,389.2,168.07,168.06,5.9502]
[1721914222878,8.7140303,168.14,168.06,5.9502]
[1721914223157,5.9483,168.12,168.06,7.14019368]
[1721914223384,5.9486,168.11,168.05,14.8758]
[1721914223577,5.949,168.1,168.05,20.826]
[1721914223734,5.949,168.1,168.05,14.8758]
[1721914223932,5.9485,168.11,168.05,20.8263]
[1721914224160,5.9485,168.11,168.06,5.9501]
[1721914224454,389.2,168.13,168.05,14.8758]
[1721914224455,5.9488,168.1,168.05,20.8263]
[1721914224842,0.40947338,168.12,168.03,5.951]
[1721914225049,404.07,168.13,168.04,5.9509]
[1721914225259,5.9492,168.09,168.04,5.9509]
[1721914225644,5.9485,168.11,168.06,5.9501]
[1721914225960,5.9481,168.12,168.07,5.9498]
[1721914226173,389.2,168.13,168.11,14.8711]
[1721914226340,389.2,168.13,168.04,46.2737]
[1721914226543,389.2,168.13,168.08,5.9492]
[1721914227043,389.2,168.12,168.09,5.9489]
[1721914227251,389.2,168.12,168.08,5.9495]
[1721914227442,389.2,168.12,168.07,14.8739]
[1721914227443,389.2,168.12,168.09,5.949]
[1721914227645,389.2,168.12,168.09,14.8722]
[1721914227850,389.2,168.18,168.12,5.9479]
[1721914228052,395.146,168.18,168.13,14.8689]
[1721914228355,389.2,168.17,168.11,5.9484]
[1721914228662,5.9472,168.15,168.06,20.0]
[1721914228859,5.9462,168.18,168.13,5.9476]
[1721914229054,6.3957,168.19,168.11,14.8711]
[1721914229366,5.9462,168.18,168.11,14.8711]
[1721914229550,5.9462,168.18,168.12,5.948]
[1721914229750,5.9462,168.18,168.13,5.9477]
[1721914229955,5.9458,168.19,168.14,14.8684]
[1721914230154,16.0763,168.21,168.14,14.8684]
[1721914230669,5.9457,168.19,168.14,14.8684]
[1721914230845,5.9463,168.17,168.12,5.948]
[1721914231169,5.9459,168.19,168.13,5.9475]
[1721914231748,5.9453,168.2,168.14,7.1364509]
[1721914231949,16.0763,168.21,168.12,5.9477]
[1721914232162,20.0,168.2,168.15,5.9468]
[1721914232363,5.9467,168.16,168.11,20.8194]
[1721914232558,5.9474,168.14,168.04,56.0277]
[1721914232765,5.9479,168.13,168.08,20.8231]
[1721914233677,5.9474,168.14,168.09,5.9491]
[1721914233960,15.27427338,168.19,168.08,14.8737]
[1721914233961,5.9471,168.15,168.08,14.8737]
[1721914234163,5.9471,168.15,168.09,5.9488]
[1721914234667,20.0,168.2,168.1,16.06087617]
[1721914234871,20.40947338,168.2,168.1,14.8712]
[1721914235164,16.0763,168.21,168.1,14.8712]
[1721914235165,16.0763,168.21,168.12,14.8697]
[1721914235565,5.9456,168.2,168.14,5.9473]
[1721914236060,16.0763,168.21,168.1,21.18936287]
[1721914236267,389.2,168.22,168.13,14.8691]
[1721914236643,5.9455,168.2,168.14,7.13663755]
[1721914236847,5.9455,168.2,168.14,5.9473]
[1721914237049,5.9457,168.19,168.14,5.9473]
[1721914237551,5.9457,168.19,168.13,14.8691]
[1721914237552,5.9461,168.18,168.13,20.8167]
[1721914238251,5.9464,168.17,168.12,5.9478]
[1721914238452,0.40947338,168.21,168.13,5.9474]
[1721914238654,20.0,168.21,168.15,14.8668]
[1721914238855,389.2,168.22,168.19,5.9455]
[1721914239055,12.2395,168.23,168.18,14.8649]
[1721914239357,12.2395,168.23,168.15,14.8672]
[1721914239358,0.40947338,168.22,168.15,14.8672]
[1721914239564,5.9455,168.2,168.15,20.814]
[1721914239777,6.2951,168.23,168.16,5.9464]
[1721914239999,33.13953796,168.28,168.16,5.9464]